[Event "*** Titled Tuesday Blitz"]
[Site "Chess.com"]
[Date "2020.05.05"]
[Round "1"]
[White "spidernv"]
[Black "AryanTari"]
[Result "0-1"]
[WhiteElo "2452"]
[BlackElo "2884"]
[TimeControl "180+1"]
[EndTime "10:05:23 PDT"]
[Termination "AryanTari won by resignation"]

1. e4 {[%clk 0:03:00.9]} 1... c6 {[%clk 0:02:59.5]} 2. d4 {[%clk 0:03:00.2]}
2... d5 {[%clk 0:03:00]} 3. exd5 {[%clk 0:03:01.1]} 3... cxd5 {[%clk 0:03:00.9]}
4. c3 {[%clk 0:03:01.4]} 4... Nc6 {[%clk 0:02:58.1]} 5. Nf3 {[%clk 0:02:59.2]}
5... Bg4 {[%clk 0:02:55.2]} 6. Bd3 {[%clk 0:02:59.6]} 6... e6 {[%clk 0:02:55.4]}
7. Bf4 {[%clk 0:02:59.5]} 7... Bd6 {[%clk 0:02:55.6]} 8. Bg3 {[%clk 0:02:59.7]}
8... Nge7 {[%clk 0:02:55.4]} 9. Nbd2 {[%clk 0:02:59.7]} 9... Ng6 {[%clk
0:02:50.7]} 10. Qb3 {[%clk 0:02:59.2]} 10... Rb8 {[%clk 0:02:46.1]} 11. O-O
{[%clk 0:02:58.4]} 11... O-O {[%clk 0:02:45.8]} 12. Rfe1 {[%clk 0:02:58.3]}
12... Bxg3 {[%clk 0:02:32]} 13. hxg3 {[%clk 0:02:57.4]} 13... b5 {[%clk
0:02:23.9]} 14. a3 {[%clk 0:02:55]} 14... Qd6 {[%clk 0:02:18.6]} 15. Bxg6 {[%clk
0:02:50.9]} 15... hxg6 {[%clk 0:02:14]} 16. Ne5 {[%clk 0:02:50.7]} 16... Nxe5
{[%clk 0:02:11.8]} 17. Rxe5 {[%clk 0:02:50.5]} 17... f6 {[%clk 0:02:09.2]} 18.
Re3 {[%clk 0:02:49.5]} 18... e5 {[%clk 0:02:08.1]} 19. dxe5 {[%clk 0:02:42.5]}
19... fxe5 {[%clk 0:02:08.1]} 20. Qb4 {[%clk 0:02:42.8]} 20... Qf6 {[%clk
0:01:55.6]} 21. f3 {[%clk 0:02:36.5]} 21... Bd7 {[%clk 0:01:52.1]} 22. Rae1
{[%clk 0:02:36.4]} 22... Rbe8 {[%clk 0:01:52.2]} 23. Qc5 {[%clk 0:02:34.7]}
23... Bc6 {[%clk 0:01:36.1]} 24. Qxa7 {[%clk 0:02:21.3]} 24... Qd6 {[%clk
0:01:34.2]} 25. Qa5 {[%clk 0:02:17.2]} 25... e4 {[%clk 0:01:22.1]} 26. f4 {[%clk
0:01:48.7]} 26... g5 {[%clk 0:01:16.5]} 27. fxg5 {[%clk 0:01:41.4]} 27... Rf5
{[%clk 0:01:11.9]} 28. Qb4 {[%clk 0:01:39.1]} 28... Qg6 {[%clk 0:01:11.1]} 29.
Qd4 {[%clk 0:01:22]} 29... Rxg5 {[%clk 0:01:10.8]} 30. Nf1 {[%clk 0:01:16]}
30... Rf8 {[%clk 0:01:09.1]} 31. b3 {[%clk 0:01:13.7]} 31... Qh6 {[%clk
0:01:07.3]} 32. g4 {[%clk 0:01:03.5]} 32... Rxg4 {[%clk 0:01:07.3]} 33. Rh3
{[%clk 0:01:03.6]} 33... Qxh3 {[%clk 0:01:04.7]} 0-1

[Event "*** Titled Tuesday Blitz"]
[Site "Chess.com"]
[Date "2020.05.05"]
[Round "1"]
[White "Grischuk"]
[Black "vangulio"]
[Result "1-0"]
[WhiteElo "3115"]
[BlackElo "2468"]
[TimeControl "180+1"]
[EndTime "10:05:25 PDT"]
[Termination "Grischuk won by resignation"]

1. Nf3 {[%clk 0:03:00.9]} 1... Nf6 {[%clk 0:02:58.8]} 2. g3 {[%clk 0:03:01.1]}
2... g6 {[%clk 0:02:58.5]} 3. c4 {[%clk 0:03:01.4]} 3... Bg7 {[%clk 0:02:57.7]}
4. Nc3 {[%clk 0:03:01.8]} 4... O-O {[%clk 0:02:57.1]} 5. Bg2 {[%clk 0:03:02.2]}
5... c5 {[%clk 0:02:57.6]} 6. d4 {[%clk 0:03:01.7]} 6... cxd4 {[%clk 0:02:57.5]}
7. Nxd4 {[%clk 0:03:02.6]} 7... Qc7 {[%clk 0:02:53.5]} 8. Qd3 {[%clk 0:03:02.4]}
8... Nc6 {[%clk 0:02:51.3]} 9. O-O {[%clk 0:03:00.8]} 9... Ne5 {[%clk
0:02:50.5]} 10. Qe3 {[%clk 0:03:00.9]} 10... Nxc4 {[%clk 0:02:13.9]} 11. Qxe7
{[%clk 0:02:59.2]} 11... Re8 {[%clk 0:02:08]} 12. Qb4 {[%clk 0:02:57.6]} 12...
a5 {[%clk 0:01:37.4]} 13. Ncb5 {[%clk 0:02:39.3]} 13... axb4 {[%clk 0:01:05.3]}
14. Nxc7 {[%clk 0:02:37.8]} 14... Ra5 {[%clk 0:01:05.8]} 15. Nxe8 {[%clk
0:02:33.5]} 15... Nxe8 {[%clk 0:01:06.7]} 16. Rd1 {[%clk 0:02:31]} 16... d5
{[%clk 0:00:55]} 17. b3 {[%clk 0:02:27.8]} 17... Ne5 {[%clk 0:00:41.3]} 18. Bb2
{[%clk 0:02:18.7]} 18... Nf6 {[%clk 0:00:31.3]} 19. a3 {[%clk 0:02:14.9]} 19...
bxa3 {[%clk 0:00:28.3]} 20. Rxa3 {[%clk 0:02:15.8]} 20... Rxa3 {[%clk
0:00:27.4]} 21. Bxa3 {[%clk 0:02:16.6]} 21... Be6 {[%clk 0:00:25.8]} 22. Bb2
{[%clk 0:02:07.5]} 22... Nc6 {[%clk 0:00:20.4]} 23. Nxc6 {[%clk 0:02:01.2]}
23... bxc6 {[%clk 0:00:21.3]} 24. e3 {[%clk 0:01:55.4]} 24... h5 {[%clk
0:00:20]} 25. b4 {[%clk 0:01:48.8]} 25... Nd7 {[%clk 0:00:17.3]} 26. Bxg7 {[%clk
0:01:47.8]} 26... Kxg7 {[%clk 0:00:18.2]} 27. b5 {[%clk 0:01:45.2]} 27... cxb5
{[%clk 0:00:17.2]} 28. Bxd5 {[%clk 0:01:45.7]} 28... Nc5 {[%clk 0:00:15.2]} 29.
Bxe6 {[%clk 0:01:44.8]} 29... Nxe6 {[%clk 0:00:16.1]} 30. Rd5 {[%clk 0:01:42.9]}
1-0

[Event "*** Titled Tuesday Blitz"]
[Site "Chess.com"]
[Date "2020.05.05"]
[Round "1"]
[White "Xeslu"]
[Black "jlucasvf"]
[Result "0-1"]
[WhiteElo "2359"]
[BlackElo "2693"]
[TimeControl "180+1"]
[EndTime "10:05:25 PDT"]
[Termination "jlucasvf won by resignation"]

1. e4 {[%clk 0:02:34.9]} 1... e5 {[%clk 0:02:45]} 2. Nf3 {[%clk 0:02:34.5]} 2...
Nf6 {[%clk 0:02:44.6]} 3. Nxe5 {[%clk 0:02:32]} 3... Nc6 {[%clk 0:02:44.4]} 4.
Nxc6 {[%clk 0:02:27.4]} 4... dxc6 {[%clk 0:02:45.3]} 5. Nc3 {[%clk 0:02:25.3]}
5... Bc5 {[%clk 0:02:44.4]} 6. Be2 {[%clk 0:02:21.3]} 6... h5 {[%clk 0:02:43.3]}
7. d3 {[%clk 0:02:19.1]} 7... Ng4 {[%clk 0:02:39.7]} 8. Bxg4 {[%clk 0:02:00.9]}
8... hxg4 {[%clk 0:02:40.6]} 9. Be3 {[%clk 0:01:58.7]} 9... Bxe3 {[%clk
0:02:36.8]} 10. fxe3 {[%clk 0:01:58.6]} 10... Qd6 {[%clk 0:02:37.7]} 11. Qe2
{[%clk 0:01:49.1]} 11... Rxh2 {[%clk 0:02:24.9]} 12. O-O-O {[%clk 0:01:48.5]}
12... Be6 {[%clk 0:02:21.3]} 13. d4 {[%clk 0:01:48.3]} 13... Rxh1 {[%clk
0:02:16.4]} 14. Rxh1 {[%clk 0:01:47.3]} 14... O-O-O {[%clk 0:02:14.7]} 15. e5
{[%clk 0:01:47.1]} 15... Qe7 {[%clk 0:02:10.9]} 16. Qf2 {[%clk 0:01:45.3]} 16...
c5 {[%clk 0:01:56.4]} 17. Qf4 {[%clk 0:01:39.9]} 17... cxd4 {[%clk 0:01:25]} 18.
exd4 {[%clk 0:01:39.1]} 18... Qb4 {[%clk 0:01:25.4]} 19. Rd1 {[%clk 0:01:34.8]}
19... c5 {[%clk 0:01:25]} 20. a3 {[%clk 0:01:23.2]} 20... Qc4 {[%clk 0:01:23.2]}
21. Ne4 {[%clk 0:00:58.1]} 21... Rxd4 {[%clk 0:01:07.8]} 22. Nd6+ {[%clk
0:00:49.4]} 22... Rxd6 {[%clk 0:01:05.6]} 0-1

[Event "*** Titled Tuesday Blitz"]
[Site "Chess.com"]
[Date "2020.05.05"]
[Round "1"]
[White "aNaartjieZA"]
[Black "AndrewDGreen"]
[Result "1-0"]
[WhiteElo "2596"]
[BlackElo "2264"]
[TimeControl "180+1"]
[EndTime "10:05:30 PDT"]
[Termination "aNaartjieZA won by resignation"]

1. e4 {[%clk 0:03:00.7]} 1... c5 {[%clk 0:02:59.5]} 2. Nf3 {[%clk 0:03:00.5]}
2... g6 {[%clk 0:02:58.9]} 3. g3 {[%clk 0:03:00.6]} 3... Bg7 {[%clk 0:02:58.4]}
4. Bg2 {[%clk 0:03:00.8]} 4... Nc6 {[%clk 0:02:58.9]} 5. O-O {[%clk 0:03:00.9]}
5... d6 {[%clk 0:02:59.4]} 6. Re1 {[%clk 0:03:00.4]} 6... e5 {[%clk 0:02:59.8]}
7. c3 {[%clk 0:02:59.8]} 7... Nge7 {[%clk 0:02:59.7]} 8. d3 {[%clk 0:03:00]}
8... O-O {[%clk 0:02:59.2]} 9. a3 {[%clk 0:03:00.2]} 9... h6 {[%clk 0:02:58.9]}
10. b4 {[%clk 0:03:00.2]} 10... a6 {[%clk 0:02:59]} 11. Nbd2 {[%clk 0:02:59.1]}
11... Be6 {[%clk 0:02:57.1]} 12. Bb2 {[%clk 0:02:58.8]} 12... b6 {[%clk
0:02:54.8]} 13. Rc1 {[%clk 0:02:55.4]} 13... Rc8 {[%clk 0:02:50.7]} 14. Ba1
{[%clk 0:02:45.6]} 14... f5 {[%clk 0:02:43.5]} 15. exf5 {[%clk 0:02:44.7]} 15...
Bxf5 {[%clk 0:02:39.9]} 16. d4 {[%clk 0:02:40.5]} 16... cxd4 {[%clk 0:02:24.9]}
17. cxd4 {[%clk 0:02:39]} 17... Nxd4 {[%clk 0:02:13.6]} 18. Nxd4 {[%clk
0:02:36.5]} 18... exd4 {[%clk 0:02:12.2]} 19. Rxc8 {[%clk 0:02:32.8]} 19... Bxc8
{[%clk 0:02:01.9]} 20. Nb3 {[%clk 0:02:30.4]} 20... Nf5 {[%clk 0:01:46.4]} 21.
Nxd4 {[%clk 0:02:28.4]} 21... Qf6 {[%clk 0:01:26.6]} 22. Ne6 {[%clk 0:01:48.5]}
22... Qxa1 {[%clk 0:01:17.5]} 23. Qxa1 {[%clk 0:01:47.4]} 23... Bxa1 {[%clk
0:01:16.7]} 24. Nxf8 {[%clk 0:01:47.5]} 24... Be5 {[%clk 0:00:33.9]} 25. Nxg6
{[%clk 0:01:44.5]} 25... Bd4 {[%clk 0:00:30.2]} 26. Re8+ {[%clk 0:01:39]} 26...
Kf7 {[%clk 0:00:30.2]} 27. Rxc8 {[%clk 0:01:38.1]} 27... Kxg6 {[%clk 0:00:30.6]}
28. Be4 {[%clk 0:01:35]} 28... Kg5 {[%clk 0:00:27]} 29. h4+ {[%clk 0:01:28.3]}
29... Kf6 {[%clk 0:00:24.8]} 30. Rf8+ {[%clk 0:01:27]} 1-0

[Event "*** Titled Tuesday Blitz"]
[Site "Chess.com"]
[Date "2020.05.05"]
[Round "1"]
[White "Reader777"]
[Black "BabyBoss31"]
[Result "1-0"]
[WhiteElo "2600"]
[BlackElo "2270"]
[TimeControl "180+1"]
[EndTime "10:05:35 PDT"]
[Termination "Reader777 won by resignation"]

1. d4 {[%clk 0:03:00.9]} 1... d5 {[%clk 0:02:58.7]} 2. c4 {[%clk 0:03:00.3]}
2... dxc4 {[%clk 0:02:58.9]} 3. e3 {[%clk 0:03:00.1]} 3... Nf6 {[%clk
0:02:54.3]} 4. Bxc4 {[%clk 0:02:59.7]} 4... e6 {[%clk 0:02:49.1]} 5. Nf3 {[%clk
0:02:59.4]} 5... c5 {[%clk 0:02:49.7]} 6. O-O {[%clk 0:02:59.2]} 6... a6 {[%clk
0:02:46.6]} 7. a4 {[%clk 0:02:58.1]} 7... Nc6 {[%clk 0:02:44]} 8. Nc3 {[%clk
0:02:56.7]} 8... Ke7 {[%clk 0:02:41]} 9. Qe2 {[%clk 0:02:48]} 9... g6 {[%clk
0:02:11.2]} 10. Rd1 {[%clk 0:02:45.8]} 10... Bg7 {[%clk 0:02:09.9]} 11. dxc5
{[%clk 0:02:38.8]} 11... Qa5 {[%clk 0:02:09.6]} 12. Nd4 {[%clk 0:02:16]} 12...
Qxc5 {[%clk 0:01:51.8]} 13. Nxc6+ {[%clk 0:02:14.3]} 13... Qxc6 {[%clk
0:01:50.8]} 14. b3 {[%clk 0:02:12.8]} 14... Bd7 {[%clk 0:00:57.9]} 15. Ba3+
{[%clk 0:02:10.6]} 15... Ke8 {[%clk 0:00:58.3]} 16. Rd6 {[%clk 0:02:03.6]} 16...
Qc7 {[%clk 0:00:52.8]} 17. Rad1 {[%clk 0:02:02.3]} 17... Bf8 {[%clk 0:00:52.5]}
18. Qf3 {[%clk 0:01:21.7]} 18... Be7 {[%clk 0:00:37.9]} 19. Ne4 {[%clk
0:01:20.1]} 19... Nxe4 {[%clk 0:00:11.9]} 20. Rxd7 {[%clk 0:01:19.5]} 20... Qxd7
{[%clk 0:00:08.8]} 21. Rxd7 {[%clk 0:01:18]} 21... Kxd7 {[%clk 0:00:08.7]} 22.
Qxf7 {[%clk 0:01:17.5]} 22... Rae8 {[%clk 0:00:07.8]} 23. Qxe6+ {[%clk 0:01:17]}
1-0

[Event "*** Titled Tuesday Blitz"]
[Site "Chess.com"]
[Date "2020.05.05"]
[Round "1"]
[White "RestartingChess"]
[Black "Klavdia_Nik"]
[Result "1-0"]
[WhiteElo "2478"]
[BlackElo "1955"]
[TimeControl "180+1"]
[EndTime "10:05:38 PDT"]
[Termination "RestartingChess won by resignation"]

1. e4 {[%clk 0:02:59.5]} 1... e5 {[%clk 0:02:56.8]} 2. Nf3 {[%clk 0:02:59.5]}
2... Nc6 {[%clk 0:02:57.3]} 3. Bc4 {[%clk 0:02:59.7]} 3... Bc5 {[%clk
0:02:54.4]} 4. c3 {[%clk 0:02:59.8]} 4... Nf6 {[%clk 0:02:51.3]} 5. O-O {[%clk
0:03:00.4]} 5... O-O {[%clk 0:02:48.1]} 6. d4 {[%clk 0:03:00.1]} 6... exd4
{[%clk 0:02:46.9]} 7. cxd4 {[%clk 0:03:01]} 7... Bb6 {[%clk 0:02:43]} 8. e5
{[%clk 0:03:01.2]} 8... Ne8 {[%clk 0:02:42.6]} 9. Bg5 {[%clk 0:02:58.7]} 9...
Ne7 {[%clk 0:02:40.2]} 10. Nc3 {[%clk 0:02:58.5]} 10... h6 {[%clk 0:02:37]} 11.
Bh4 {[%clk 0:02:56.5]} 11... c6 {[%clk 0:02:34.4]} 12. Ne4 {[%clk 0:02:53.2]}
12... d5 {[%clk 0:02:32.4]} 13. exd6 {[%clk 0:02:52.6]} 13... Nxd6 {[%clk
0:02:32.7]} 14. Nf6+ {[%clk 0:02:08.9]} 14... Kh8 {[%clk 0:02:07.9]} 15. Bb3
{[%clk 0:02:06.6]} 15... Ng6 {[%clk 0:01:59.5]} 16. Nh7 {[%clk 0:01:36]} 16...
Qc7 {[%clk 0:01:48.2]} 17. Nxf8 {[%clk 0:01:36.9]} 17... Nxf8 {[%clk 0:01:47.1]}
18. Bg3 {[%clk 0:01:35.8]} 18... Be6 {[%clk 0:01:33.6]} 19. Bxe6 {[%clk
0:01:26.9]} 19... Nxe6 {[%clk 0:01:01.9]} 20. d5 {[%clk 0:01:26.9]} 20... cxd5
{[%clk 0:00:56.4]} 21. Qxd5 {[%clk 0:01:26.9]} 21... Rd8 {[%clk 0:00:56.1]} 22.
Rfd1 {[%clk 0:01:24.5]} 22... Bc5 {[%clk 0:00:32.9]} 23. Rac1 {[%clk 0:01:24]}
23... Qb6 {[%clk 0:00:32.2]} 24. Rxc5 {[%clk 0:01:18.7]} 1-0

[Event "*** Titled Tuesday Blitz"]
[Site "Chess.com"]
[Date "2020.05.05"]
[Round "1"]
[White "DanielMieles1985"]
[Black "Chessmatus"]
[Result "0-1"]
[WhiteElo "2657"]
[BlackElo "2356"]
[TimeControl "180+1"]
[EndTime "10:05:39 PDT"]
[Termination "Chessmatus won by resignation"]

1. c4 {[%clk 0:02:59.3]} 1... e5 {[%clk 0:02:59.3]} 2. Nc3 {[%clk 0:02:57]} 2...
Nf6 {[%clk 0:02:58.6]} 3. g3 {[%clk 0:02:55.4]} 3... c6 {[%clk 0:02:58.1]} 4.
Nf3 {[%clk 0:02:53.1]} 4... e4 {[%clk 0:02:56.1]} 5. Nd4 {[%clk 0:02:51.9]} 5...
d5 {[%clk 0:02:55.6]} 6. cxd5 {[%clk 0:02:47.7]} 6... cxd5 {[%clk 0:02:53.3]} 7.
Bg2 {[%clk 0:02:42.9]} 7... Nc6 {[%clk 0:02:47.4]} 8. Nxc6 {[%clk 0:02:42.3]}
8... bxc6 {[%clk 0:02:48.3]} 9. d3 {[%clk 0:02:41.2]} 9... exd3 {[%clk
0:02:27.3]} 10. Qxd3 {[%clk 0:02:40]} 10... Be7 {[%clk 0:02:27.5]} 11. O-O
{[%clk 0:02:35.1]} 11... O-O {[%clk 0:02:24.1]} 12. b3 {[%clk 0:02:35.3]} 12...
a5 {[%clk 0:02:15.6]} 13. Bb2 {[%clk 0:02:34.6]} 13... Be6 {[%clk 0:01:54.6]}
14. Na4 {[%clk 0:02:26.1]} 14... Nd7 {[%clk 0:01:47.4]} 15. Rac1 {[%clk
0:02:23.7]} 15... Rc8 {[%clk 0:01:40.5]} 16. e4 {[%clk 0:02:14.8]} 16... dxe4
{[%clk 0:01:20.4]} 17. Bxe4 {[%clk 0:02:15.7]} 17... Nf6 {[%clk 0:01:20.2]} 18.
Qxd8 {[%clk 0:02:06.6]} 18... Rfxd8 {[%clk 0:01:18]} 19. Rxc6 {[%clk 0:02:05.3]}
19... Nxe4 {[%clk 0:01:11.3]} 20. Ra6 {[%clk 0:02:03.5]} 20... Bb4 {[%clk
0:01:04.5]} 21. a3 {[%clk 0:01:55.2]} 21... Bd2 {[%clk 0:00:57.7]} 22. f3 {[%clk
0:01:26.6]} 22... Nc5 {[%clk 0:00:52.6]} 23. Nxc5 {[%clk 0:01:24.6]} 23... Rxc5
{[%clk 0:00:53.5]} 24. Rd1 {[%clk 0:01:24.1]} 24... h6 {[%clk 0:00:47.4]} 25. b4
{[%clk 0:01:17.2]} 25... axb4 {[%clk 0:00:42.3]} 26. axb4 {[%clk 0:01:18]} 26...
Rc2 {[%clk 0:00:42.7]} 27. Be5 {[%clk 0:01:13.9]} 27... Be3+ {[%clk 0:00:41.6]}
0-1

[Event "*** Titled Tuesday Blitz"]
[Site "Chess.com"]
[Date "2020.05.05"]
[Round "1"]
[White "IljaJoke"]
[Black "CzechmVIII"]
[Result "1-0"]
[WhiteElo "2564"]
[BlackElo "2225"]
[TimeControl "180+1"]
[EndTime "10:05:39 PDT"]
[Termination "IljaJoke won by resignation"]

1. d4 {[%clk 0:03:00.9]} 1... Nf6 {[%clk 0:02:59.3]} 2. c4 {[%clk 0:02:59.5]}
2... c5 {[%clk 0:02:59.3]} 3. d5 {[%clk 0:02:59.4]} 3... e6 {[%clk 0:02:59.5]}
4. Nc3 {[%clk 0:02:59.3]} 4... exd5 {[%clk 0:02:59.8]} 5. cxd5 {[%clk
0:03:00.2]} 5... d6 {[%clk 0:03:00.2]} 6. e4 {[%clk 0:03:00.4]} 6... g6 {[%clk
0:03:00.5]} 7. Nge2 {[%clk 0:03:00.9]} 7... h5 {[%clk 0:02:58.4]} 8. Ng3 {[%clk
0:03:01.5]} 8... h4 {[%clk 0:02:58.5]} 9. Nge2 {[%clk 0:03:01.2]} 9... Bg7
{[%clk 0:02:56.6]} 10. Bg5 {[%clk 0:02:54.6]} 10... a6 {[%clk 0:02:56.1]} 11. a4
{[%clk 0:02:52.8]} 11... Nbd7 {[%clk 0:02:53.7]} 12. Nc1 {[%clk 0:02:46.3]}
12... Qc7 {[%clk 0:02:48.6]} 13. Be2 {[%clk 0:02:43.9]} 13... h3 {[%clk
0:02:39.6]} 14. g3 {[%clk 0:02:42.7]} 14... Nh7 {[%clk 0:02:34.4]} 15. Be3
{[%clk 0:02:42]} 15... O-O {[%clk 0:02:15]} 16. O-O {[%clk 0:02:39.2]} 16...
Nhf6 {[%clk 0:02:04.5]} 17. f4 {[%clk 0:02:35.9]} 17... c4 {[%clk 0:01:58.4]}
18. Bd4 {[%clk 0:02:30.3]} 18... Nc5 {[%clk 0:01:45.8]} 19. e5 {[%clk 0:02:25]}
19... Nfe4 {[%clk 0:01:32.8]} 20. Nxe4 {[%clk 0:02:14.2]} 20... Nxe4 {[%clk
0:01:32.3]} 21. Bf3 {[%clk 0:02:14.7]} 21... Nc5 {[%clk 0:01:23.4]} 22. exd6
{[%clk 0:01:58.2]} 22... Qxd6 {[%clk 0:01:22]} 23. Bxg7 {[%clk 0:01:56.5]} 23...
Kxg7 {[%clk 0:01:19.7]} 24. Qd4+ {[%clk 0:01:57]} 24... Kg8 {[%clk 0:01:18.6]}
25. Qxc4 {[%clk 0:01:56.9]} 25... Bf5 {[%clk 0:01:06.8]} 26. b4 {[%clk
0:01:56.5]} 26... Nd7 {[%clk 0:00:53.1]} 27. Qd4 {[%clk 0:01:55.5]} 27... Nf6
{[%clk 0:00:46.7]} 28. Ne2 {[%clk 0:01:42.1]} 28... Rfe8 {[%clk 0:00:40]} 29.
Nc3 {[%clk 0:01:37.3]} 29... Rac8 {[%clk 0:00:38.5]} 30. Rfe1 {[%clk 0:01:34.8]}
30... Ng4 {[%clk 0:00:20.2]} 31. Bxg4 {[%clk 0:01:30.5]} 31... Bxg4 {[%clk
0:00:21.1]} 32. Ne4 {[%clk 0:01:30.9]} 32... Rxe4 {[%clk 0:00:17.9]} 33. Rxe4
{[%clk 0:01:31.8]} 33... Rc2 {[%clk 0:00:15.1]} 34. Re8+ {[%clk 0:01:30]} 1-0

[Event "*** Titled Tuesday Blitz"]
[Site "Chess.com"]
[Date "2020.05.05"]
[Round "1"]
[White "Agent-JL"]
[Black "EfrenRamos1"]
[Result "1/2-1/2"]
[WhiteElo "2536"]
[BlackElo "2211"]
[TimeControl "180+1"]
[EndTime "10:05:40 PDT"]
[Termination "Game drawn by repetition"]

1. d4 {[%clk 0:02:54.4]} 1... Nf6 {[%clk 0:02:57.4]} 2. c4 {[%clk 0:02:54.3]}
2... e6 {[%clk 0:02:57]} 3. Nf3 {[%clk 0:02:53.3]} 3... b6 {[%clk 0:02:55.9]} 4.
e3 {[%clk 0:02:53.3]} 4... Bb7 {[%clk 0:02:54.6]} 5. Bd3 {[%clk 0:02:53.8]} 5...
d5 {[%clk 0:02:53.5]} 6. O-O {[%clk 0:02:52]} 6... Bd6 {[%clk 0:02:52.1]} 7. b3
{[%clk 0:02:51.7]} 7... Nbd7 {[%clk 0:02:50.4]} 8. Bb2 {[%clk 0:02:51.5]} 8...
a6 {[%clk 0:02:45.5]} 9. Nc3 {[%clk 0:02:50.5]} 9... c5 {[%clk 0:02:43.5]} 10.
cxd5 {[%clk 0:02:42.5]} 10... exd5 {[%clk 0:02:40.4]} 11. Qc2 {[%clk 0:02:40.9]}
11... cxd4 {[%clk 0:02:38.1]} 12. Nxd4 {[%clk 0:02:40.6]} 12... O-O {[%clk
0:02:35.7]} 13. Rac1 {[%clk 0:02:39.5]} 13... g6 {[%clk 0:02:30.4]} 14. Rfd1
{[%clk 0:02:36.3]} 14... Qe7 {[%clk 0:02:28]} 15. Qb1 {[%clk 0:02:35.6]} 15...
Ne5 {[%clk 0:02:23.8]} 16. Bf1 {[%clk 0:02:23.7]} 16... b5 {[%clk 0:01:57.4]}
17. Nce2 {[%clk 0:02:19]} 17... Neg4 {[%clk 0:01:52.6]} 18. Ng3 {[%clk 0:01:50]}
18... Bxg3 {[%clk 0:01:40.1]} 19. hxg3 {[%clk 0:01:42.5]} 19... Nxf2 {[%clk
0:01:03.8]} 20. Kxf2 {[%clk 0:01:29.7]} 20... Ng4+ {[%clk 0:01:01.8]} 21. Ke1
{[%clk 0:01:13.6]} 21... Qxe3+ {[%clk 0:00:57.3]} 22. Ne2 {[%clk 0:01:13.2]}
22... Qf2+ {[%clk 0:00:48.1]} 23. Kd2 {[%clk 0:01:12.8]} 23... Qe3+ {[%clk
0:00:48.4]} 24. Ke1 {[%clk 0:01:09.9]} 24... Qf2+ {[%clk 0:00:47.9]} 25. Kd2
{[%clk 0:00:56.8]} 25... Qe3+ {[%clk 0:00:48.2]} 26. Ke1 {[%clk 0:00:35.6]}
1/2-1/2

[Event "*** Titled Tuesday Blitz"]
[Site "Chess.com"]
[Date "2020.05.05"]
[Round "1"]
[White "Kensei26"]
[Black "tsvet2005"]
[Result "0-1"]
[WhiteElo "2164"]
[BlackElo "2527"]
[TimeControl "180+1"]
[EndTime "10:05:41 PDT"]
[Termination "tsvet2005 won by resignation"]

1. e4 {[%clk 0:02:17.9]} 1... c5 {[%clk 0:02:59.4]} 2. Nc3 {[%clk 0:02:16.6]}
2... d6 {[%clk 0:02:59.8]} 3. Nge2 {[%clk 0:02:15.9]} 3... Nf6 {[%clk
0:02:58.8]} 4. g3 {[%clk 0:02:15.2]} 4... g6 {[%clk 0:02:58.2]} 5. Bg2 {[%clk
0:02:14.6]} 5... Bg7 {[%clk 0:02:58.5]} 6. d4 {[%clk 0:02:15.3]} 6... cxd4
{[%clk 0:02:58.4]} 7. Nxd4 {[%clk 0:02:15.8]} 7... O-O {[%clk 0:02:58.5]} 8. O-O
{[%clk 0:02:15.9]} 8... Nbd7 {[%clk 0:02:56.7]} 9. Nd5 {[%clk 0:02:10.5]} 9...
Nc5 {[%clk 0:02:48]} 10. Re1 {[%clk 0:02:01.5]} 10... a6 {[%clk 0:02:43.7]} 11.
a4 {[%clk 0:02:00]} 11... Ne6 {[%clk 0:02:32.6]} 12. c3 {[%clk 0:01:57.8]} 12...
Nxd5 {[%clk 0:02:11.8]} 13. exd5 {[%clk 0:01:57.1]} 13... Nxd4 {[%clk
0:02:12.7]} 14. cxd4 {[%clk 0:01:56.9]} 14... Qb6 {[%clk 0:02:10.9]} 15. Rxe7
{[%clk 0:01:50.4]} 15... Bxd4 {[%clk 0:02:06.2]} 16. Be3 {[%clk 0:01:48.5]}
16... Bxe3 {[%clk 0:01:53.9]} 17. Rxe3 {[%clk 0:01:41.9]} 17... Qxb2 {[%clk
0:01:52.9]} 18. h4 {[%clk 0:01:35.8]} 18... Bf5 {[%clk 0:01:42]} 19. Rc1 {[%clk
0:01:26.6]} 19... Rac8 {[%clk 0:01:39.9]} 20. Re1 {[%clk 0:01:09.7]} 20... Rxc1
{[%clk 0:01:27]} 21. Qxc1 {[%clk 0:01:07.4]} 21... Qxc1 {[%clk 0:01:27.9]} 22.
Rxc1 {[%clk 0:01:06.3]} 22... Rc8 {[%clk 0:01:28.8]} 23. Rxc8+ {[%clk
0:00:39.7]} 23... Bxc8 {[%clk 0:01:29.7]} 24. a5 {[%clk 0:00:39.6]} 24... Kf8
{[%clk 0:01:18.8]} 25. f4 {[%clk 0:00:39.5]} 25... Ke7 {[%clk 0:01:18.1]} 26.
Kh2 {[%clk 0:00:32.6]} 26... Kd7 {[%clk 0:01:17.8]} 27. Bh3+ {[%clk 0:00:32.9]}
27... Kc7 {[%clk 0:01:18]} 28. Bxc8 {[%clk 0:00:30.8]} 28... Kxc8 {[%clk
0:01:18.9]} 29. Kh3 {[%clk 0:00:30.2]} 29... b6 {[%clk 0:01:19]} 30. axb6 {[%clk
0:00:28.4]} 30... a5 {[%clk 0:01:19]} 31. Kg4 {[%clk 0:00:29.3]} 31... a4 {[%clk
0:01:19.4]} 32. Kg5 {[%clk 0:00:30.2]} 32... a3 {[%clk 0:01:18.2]} 33. Kh6
{[%clk 0:00:31.1]} 33... a2 {[%clk 0:01:18.5]} 34. Kxh7 {[%clk 0:00:32]} 34...
a1=Q {[%clk 0:01:18.8]} 0-1